fUST/lending_fUST_20250305
["ID","MTS","AMOUNT","RATE_DAILY","PERIOD"]
[355430697,1741139443719,-883.4,0.00043835,120]
[355430698,1741139443730,-500.0,0.00043835,120]
[355430699,1741139443740,-506.14112654,0.00043835,120]
[355430700,1741139443750,-500.0,0.00043835,120]
[355430701,1741139443760,-500.0,0.00043835,120]
[355430702,1741139443771,-500.0,0.00043835,120]
[355430703,1741139443783,-539.57,0.00043835,120]
[355430704,1741139443793,-500.0,0.00043835,120]
[355430705,1741139443803,-500.0,0.00043835,120]
[355430706,1741139443814,-500.0,0.00043835,120]
[355430707,1741139443824,-500.0,0.00043835,120]
[355430708,1741139443834,-500.0,0.00043835,120]
[355430709,1741139443844,-500.0,0.00043835,120]
[355430710,1741139443854,-514.28,0.00043835,120]
[355430711,1741139443865,-500.0,0.00043835,120]
[355430712,1741139443875,-500.0,0.00043835,16]
[355430713,1741139443886,-500.0,0.00043835,120]
[355430714,1741139443896,-489.57191087,0.00043835,120]
[355430715,1741139443907,-500.0,0.00043835,120]
[355430716,1741139443917,-500.0,0.00043835,120]
[355430717,1741139443928,-500.0,0.00043835,120]
[355430718,1741139443938,-500.0,0.00043835,120]
[355430719,1741139443949,-500.0,0.00043835,120]
[355430720,1741139443960,-500.0,0.00043835,120]
[355430721,1741139443970,-500.0,0.00043835,120]
[355430722,1741139443980,-500.0,0.00043835,120]
[355430723,1741139443990,-500.0,0.00043835,120]
[355430724,1741139444001,-563.09,0.00043835,120]
[355430725,1741139444011,-500.0,0.00043835,120]
[355430726,1741139444022,-616.49936996,0.00043835,120]
[355430727,1741139444032,-423.02258445,0.00043835,120]
[355430728,1741139444042,-522.87,0.00043835,120]
[355430729,1741139444053,-500.0,0.00043835,120]
[355430730,1741139444064,-280.7082588,0.00043835,120]
[355430731,1741139444075,-500.0,0.00043835,120]
[355430732,1741139444085,-500.0,0.00043835,120]
[355430733,1741139444096,-567.69,0.00043835,120]
[355430734,1741139444106,-500.0,0.00043835,120]
[355430735,1741139444117,-1151.73,0.00043835,120]
[355430736,1741139444128,-500.0,0.00043835,120]
[355430737,1741139444138,-500.0,0.00043835,120]
[355430738,1741139444149,-500.0,0.00043835,120]
[355430739,1741139444159,-500.0,0.00043835,120]
[355430740,1741139444170,-554.63,0.00043835,120]
[355430741,1741139444181,-500.0,0.00043835,120]
[355430742,1741139444191,-500.0,0.00043835,120]
[355430743,1741139444202,-500.0,0.00043835,120]
[355430744,1741139444218,-532.66,0.00043835,120]
[355430745,1741139444229,-500.0,0.00043835,120]
[355430746,1741139444239,-500.0,0.00043835,120]
[355430747,1741139444249,-565.75071526,0.00043835,120]
[355430748,1741139444263,-500.0,0.00043835,120]
[355430749,1741139444274,-500.0,0.00043835,120]
[355430750,1741139444285,-500.0,0.00043835,120]
[355430751,1741139444297,-500.0,0.00043835,120]
[355430752,1741139444308,-500.0,0.00043835,120]
[355430753,1741139444319,-500.0,0.00043835,120]
[355430754,1741139444330,-500.0,0.00043835,120]
[355430755,1741139444340,-500.0,0.00043835,120]
[355430756,1741139444351,-500.0,0.00043835,120]
[355430757,1741139444361,-563.45,0.00043835,120]
[355430758,1741139444371,-500.0,0.00043835,120]
[355430759,1741139444382,-500.0,0.00043835,120]
[355430760,1741139444392,-500.0,0.00043835,120]
[355430761,1741139444403,-500.0,0.00043835,120]
[355430762,1741139444414,-500.0,0.00043835,120]
[355430763,1741139444425,-500.0,0.00043835,120]
[355430764,1741139444435,-779.04,0.00043835,120]
[355430765,1741139444446,-584.96779326,0.00043835,120]
[355430766,1741139444457,-578.01799387,0.00043835,120]
[355430767,1741139444469,-886.96,0.00043835,120]
[355430768,1741139444480,-500.0,0.00043835,120]
[355430769,1741139444490,-500.0,0.00043835,120]
[355430770,1741139444501,-500.0,0.00043835,120]
[355430771,1741139444512,-556.54,0.00043835,120]
[355430772,1741139444522,-500.0,0.00043835,120]
[355430774,1741139444533,-500.0,0.00043835,120]
[355430775,1741139444544,-500.0,0.00043835,120]
[355430776,1741139444555,-500.0,0.00043835,120]
[355430777,1741139444565,-500.0,0.00043835,120]
[355430778,1741139444576,-500.0,0.00043835,120]
[355430779,1741139444586,-500.0,0.00043835,120]
[355430780,1741139444597,-896.76,0.00043835,120]
[355430781,1741139444608,-521.05,0.00043835,120]
[355430782,1741139444618,-500.0,0.00043835,120]
[355430783,1741139444629,-500.0,0.00043835,120]
[355430784,1741139444639,-565.97,0.00043835,120]
[355430785,1741139444650,-500.0,0.00043835,120]
[355430786,1741139444661,-500.0,0.00043835,120]
[355430787,1741139444671,-500.0,0.00043835,120]
[355430788,1741139444682,-500.0,0.00043835,120]
[355430789,1741139444692,-1897.56,0.00043835,120]
[355430790,1741139444703,-500.0,0.00043835,120]
[355430791,1741139444713,-3815.01,0.00043835,120]
[355430792,1741139444724,-500.0,0.00043835,120]
[355430793,1741139444735,-500.0,0.00043835,120]
[355430794,1741139444745,-500.0,0.00043835,120]
[355430795,1741139444755,-500.0,0.00043835,120]
[355430796,1741139444766,-500.0,0.00043835,120]
[355430797,1741139444776,-582.95,0.00043835,30]
[355430798,1741139444788,-500.0,0.00043835,120]
[355430799,1741139444798,-500.0,0.00043835,120]
[355430800,1741139444808,-500.0,0.00043835,120]
[355430801,1741139444819,-500.0,0.00043835,120]
[355430802,1741139444829,-1531.79,0.00043835,120]
[355430803,1741139444839,-500.0,0.00043835,120]
[355430804,1741139444849,-9415.3,0.00043835,120]
[355430805,1741139444859,-500.0,0.00043835,120]
[355430806,1741139444869,-280.5105487,0.00043835,120]
[355430807,1741139444879,-615.51402445,0.00043835,120]
[355430808,1741139444889,-2397.81,0.00043835,120]
[355430809,1741139444900,-500.0,0.00043835,120]
[355430810,1741139444910,-500.0,0.00043835,120]
[355430811,1741139444920,-500.0,0.00043835,120]
[355430812,1741139444931,-500.0,0.00043835,120]
[355430813,1741139444941,-500.0,0.00043835,120]
[355430814,1741139444952,-1406.6,0.00043835,120]
[355430815,1741139444962,-2716.5,0.00043835,120]
[355430816,1741139444972,-1214.47,0.00043835,120]
[355430817,1741139444983,-500.0,0.00043835,120]
[355430818,1741139444993,-912.5,0.00043835,120]
[355430819,1741139445004,-552.39,0.00043835,120]
[355430820,1741139445014,-500.0,0.00043835,120]
[355430821,1741139445024,-500.0,0.00043835,120]
[355430822,1741139445034,-500.0,0.00043835,120]
[355430823,1741139445045,-1521.7,0.00043835,120]
[355430824,1741139445055,-1254.5,0.00043835,120]
[355430825,1741139445066,-487.05435772,0.00043835,120]
[355430826,1741139445077,-500.0,0.00043835,120]
[355430827,1741139445088,-500.0,0.00043835,120]
[355430828,1741139445099,-500.0,0.00043835,120]
[355430829,1741139445110,-563.36450404,0.00043835,120]
[355430830,1741139445120,-692.67,0.00043835,120]
[355430831,1741139445131,-1830.9,0.00043835,120]
[355430832,1741139445142,-12392.14,0.00043835,120]
[355430833,1741139445458,-810.7,0.00043835,120]
[355430834,1741139445477,-2426.59,0.00043835,120]
[355430835,1741139445492,-500.0,0.00043835,120]
[355430836,1741139445502,-500.0,0.00043835,120]
[355430837,1741139445511,-521.27,0.00043835,120]
[355430838,1741139445521,-500.0,0.00043835,120]
[355430839,1741139445530,-500.0,0.00043835,120]
[355430840,1741139445541,-500.0,0.00043835,120]
[355430841,1741139445550,-500.0,0.00043835,120]
[355430842,1741139445560,-500.0,0.00043835,120]
[355430843,1741139445569,-500.0,0.00043835,120]
[355430844,1741139445579,-500.0,0.00043835,120]
[355430845,1741139445588,-500.0,0.00043835,120]
[355430846,1741139445598,-500.0,0.00043835,120]
[355430847,1741139445607,-500.0,0.00043835,120]
[355430848,1741139445616,-500.0,0.00043835,120]
[355430849,1741139445625,-914.19,0.00043835,120]
[355430850,1741139445635,-15061.33389984,0.00043835,7]
[355430851,1741139445844,-2155.4,0.00043835,7]
[355430854,1741139446428,-14.77166706,0.00027373,2]
[355430855,1741139446440,-252.20685183,0.00027373,2]
[355430856,1741139446450,-659.187352,0.00041096,120]
[355430857,1741139446459,-659.187352,0.00041096,120]
[355430858,1741139446469,-659.187352,0.00041096,120]
[355430859,1741139446479,-659.187352,0.00041096,120]
[355430860,1741139446489,-659.187352,0.00041096,120]
[355430862,1741139446499,-659.187352,0.00041096,120]
[355430864,1741139446510,-269.74385041,0.00041096,120]
[355430866,1741139446525,-389.44349559,0.00041096,120]
[355430869,1741139446536,-150.0,0.00043461,2]
[355430871,1741139446548,-390.31650441,0.00043757,30]
[355430907,1741139446933,-167.91779199,0.00043757,30]
[355430908,1741139446943,-119269.10610016,0.00043835,7]
[355430909,1741139446952,-500.0,0.00043835,120]
[355430911,1741139446962,-464.82706034,0.00043835,120]
[355430913,1741139446972,-503.93,0.00043835,120]
[355430915,1741139446981,-910.08,0.00043835,120]
[355430917,1741139446991,-500.0,0.00043835,120]
[355430919,1741139447001,-500.0,0.00043835,120]
[355430921,1741139447011,-500.0,0.00043835,120]
[355430922,1741139447021,-1034.15,0.00043835,120]
[355430923,1741139447030,-535.52,0.00043835,120]
[355430924,1741139447042,-1846.33,0.00043835,120]
[355430925,1741139447052,-1284.34,0.00043835,120]
[355430926,1741139447062,-542.12685523,0.00043835,30]
[355430927,1741139447072,-500.0,0.00043835,120]
[355430928,1741139447082,-500.0,0.00043835,120]
[355430929,1741139447092,-500.0,0.00043835,120]
[355430930,1741139447102,-500.0,0.00043835,120]
[355430931,1741139447112,-500.0,0.00043835,120]
[355430932,1741139447122,-500.0,0.00043835,120]
[355430933,1741139447131,-500.0,0.00043835,120]
[355430934,1741139447142,-500.0,0.00043835,120]
[355430935,1741139447151,-640.4170858,0.00043835,120]
[355430936,1741139447161,-500.0,0.00043835,120]
[355430937,1741139447170,-500.0,0.00043835,120]
[355430938,1741139447179,-500.0,0.00043835,120]
[355430939,1741139447189,-515.2,0.00043835,120]
[355430940,1741139447198,-526.99,0.00043835,120]
[355430941,1741139447207,-501.0471114,0.00043835,120]
[355430942,1741139447218,-1121.97,0.00043835,120]
[355430943,1741139447228,-500.0,0.00043835,120]
[355430944,1741139447238,-500.0,0.00043835,120]
[355430945,1741139447247,-500.0,0.00043835,120]
[355430946,1741139447256,-500.0,0.00043835,120]
[355430947,1741139447266,-500.0,0.00043835,120]
[355430948,1741139447276,-500.0,0.00043835,120]
[355430949,1741139447287,-500.0,0.00043835,120]
[355430950,1741139447299,-2422.3,0.00043835,120]
[355430951,1741139447308,-500.0,0.00043835,120]
[355430952,1741139447317,-4880.06,0.00043835,120]
[355430953,1741139447327,-4723.85,0.00043835,30]
[355430954,1741139447337,-500.0,0.00043835,120]
[355430955,1741139447346,-500.0,0.00043835,120]
[355430956,1741139447355,-1913.78,0.00043835,120]
[355430957,1741139447364,-1122.38,0.00043835,120]
[355430958,1741139447374,-200.0,0.00043835,7]
[355430959,1741139447384,-500.0,0.00043835,120]
[355430960,1741139447393,-500.0,0.00043835,120]
[355430961,1741139447402,-512.18471282,0.00043835,120]
[355430962,1741139447412,-500.0,0.00043835,120]
[355430963,1741139447421,-5840.93,0.00043835,120]
[355430964,1741139447430,-610.32,0.00043835,120]
[355430965,1741139447439,-939.17,0.00043835,120]
[355430966,1741139447448,-500.0,0.00043835,120]
[355430967,1741139447458,-500.0,0.00043835,120]
[355430968,1741139447467,-500.0,0.00043835,120]
[355430969,1741139447476,-500.0,0.00043835,120]
[355430970,1741139447485,-433.78230306,0.00043835,120]
[355430971,1741139447496,-4270.5,0.00043835,120]
[355430972,1741139447505,-500.0,0.00043835,120]
[355430973,1741139447514,-500.0,0.00043835,120]
[355430974,1741139447525,-500.0,0.00043835,120]
[355430975,1741139447534,-500.0,0.00043835,120]
[355430976,1741139447544,-500.0,0.00043835,120]
[355430977,1741139447553,-500.0,0.00043835,120]
[355430978,1741139447562,-759.97,0.00043835,120]
[355430979,1741139447572,-500.0,0.00043835,120]
[355430980,1741139447581,-500.0,0.00043835,120]
[355430981,1741139447590,-500.0,0.00043835,120]
[355430982,1741139447599,-8396.97,0.00043835,120]
[355430983,1741139447608,-500.0,0.00043835,120]
[355430984,1741139447618,-500.0,0.00043835,120]
[355430985,1741139447627,-500.0,0.00043835,120]
[355430986,1741139447636,-500.0,0.00043835,120]
[355430987,1741139447646,-668.42,0.00043835,120]
[355430988,1741139447655,-1681.53,0.00043835,120]
[355430989,1741139447664,-500.0,0.00043835,120]
[355430990,1741139447674,-1763.42,0.00043835,120]
[355430991,1741139447683,-500.0,0.00043835,120]
[355430992,1741139447692,-500.0,0.00043835,120]
[355430993,1741139447702,-9301.65,0.00043835,6]
[355430994,1741139447711,-500.0,0.00043835,120]
[355430995,1741139447720,-500.0,0.00043835,120]
[355430996,1741139447729,-1315.76,0.00043835,120]
[355430997,1741139447739,-500.0,0.00043835,120]
[355430998,1741139447748,-500.0,0.00043835,120]
[355430999,1741139447757,-500.0,0.00043835,120]
[355431000,1741139447767,-500.0,0.00043835,120]
[355431001,1741139447776,-500.0,0.00043835,120]
[355431002,1741139447786,-1235.92,0.00043835,120]
[355431003,1741139447796,-500.0,0.00043835,120]
[355431004,1741139447806,-500.0,0.00043835,120]
[355431005,1741139447815,-572.16,0.00043835,120]
[355431006,1741139447824,-500.0,0.00043835,120]
[355431007,1741139447834,-520.91495845,0.00043835,120]
[355431008,1741139447843,-605.53046895,0.00043835,120]
[355431009,1741139447853,-500.0,0.00043835,120]
[355431010,1741139447863,-1348.96,0.00043835,120]
[355431011,1741139447872,-500.0,0.00043835,120]
[355431012,1741139447882,-500.0,0.00043835,120]
[355431013,1741139447891,-500.0,0.00043835,120]
[355431014,1741139447901,-500.0,0.00043835,120]
[355431015,1741139447911,-500.0,0.00043835,120]
[355431016,1741139447921,-500.0,0.00043835,120]
[355431017,1741139447930,-622.31,0.00043835,120]
[355431018,1741139447939,-500.0,0.00043835,120]
[355431019,1741139447948,-500.0,0.00043835,120]
[355431020,1741139447958,-500.0,0.00043835,120]
[355431021,1741139447969,-500.0,0.00043835,120]
[355431022,1741139447978,-500.0,0.00043835,120]
[355431023,1741139447988,-500.0,0.00043835,120]
[355431024,1741139447999,-6679.53,0.00043835,120]
[355431025,1741139448008,-500.0,0.00043835,120]
[355431026,1741139448018,-655.61340685,0.00043835,120]
[355431027,1741139496943,294.0,0.00022,30]
[355431029,1741140568093,-1430.37284782,0.000199,2]
[355431053,1741140631863,-527.18212191,0.000199,2]
[355431054,1741140631873,-1957.55496973,0.000249,2]
[355431055,1741140631883,-3505.25154172,0.00025005,2]
[355431056,1741140631893,-1697.57360364,0.00025105,2]
[355431057,1741140631904,-150.0,0.00025205,7]
[355431058,1741140631914,-500.0,0.00025613,2]
[355431059,1741140631924,-300.0,0.00026574,2]
[355431060,1741140631935,-470.06,0.00026626,3]
[355431061,1741140631945,-42540.96207302,0.00026626,2]
[355431128,1741141296851,-816.0,0.0001875,2]
[355431129,1741141303379,-816.0,0.00018976,2]
[355431136,1741141754089,-1302.88599385,0.00018,4]
[355431137,1741141754110,-300.0,0.00018119,2]
[355431138,1741141754132,-1000.0,0.0001812,2]
[355431139,1741141754156,-1000.0,0.0001812,2]
[355431140,1741141754178,-1000.0,0.0001812,2]
[355431141,1741141754198,-1000.0,0.0001812,2]
[355431142,1741141754219,-1000.0,0.0001812,2]
[355431143,1741141754239,-1000.0,0.0001812,2]
[355431144,1741141754260,-1000.0,0.0001812,2]
[355431145,1741141754283,-349.07453402,0.0001812,2]
[355431204,1741141835292,-650.92546598,0.0001812,2]
[355431205,1741141835302,-1430.27068799,0.0001812,2]
[355431206,1741141835311,-150.0,0.000189,2]
[355431207,1741141835321,-150.21423492,0.00019,120]
[355431208,1741141835330,-1000.0,0.00019022,2]
[355431209,1741141835341,-1000.0,0.00019022,2]
[355431210,1741141835350,-1000.0,0.00019022,2]
[355431211,1741141835359,-1000.0,0.00019022,2]
[355431212,1741141835369,-1000.0,0.00019022,2]
[355431213,1741141835379,-1000.0,0.00019022,2]
[355431214,1741141835389,-1000.0,0.00019022,2]
[355431215,1741141835399,-1000.0,0.00019022,2]
[355431216,1741141835409,-1000.0,0.00019022,2]
[355431217,1741141835418,-2812.6205255,0.00019033,2]
[355431218,1741141835428,-816.0,0.00019123,2]
[355431219,1741141835438,-816.0,0.00019231,2]
[355431221,1741141835447,-816.0,0.00019646,2]
[355431222,1741141835457,-816.0,0.0001996,2]
[355431223,1741141835467,-816.0,0.00020053,2]
[355431224,1741141835476,-816.0,0.00020503,2]
[355431225,1741141835486,-12058.75043277,0.0002061,2]
[355431560,1741142353183,816.0,0.00015527,2]
[355431561,1741142353524,816.0,0.00015648,2]
[355431562,1741142353859,816.0,0.00015956,2]
[355431563,1741142477658,816.0,0.0001479,2]
[355431564,1741142477979,816.0,0.00015003,2]
[355431565,1741142478386,816.0,0.00015238,2]
[355431566,1741142478809,816.0,0.00015578,2]
[355431567,1741142479344,816.0,0.00015703,2]
[355431569,1741142714990,816.0,0.000156,2]
[355431570,1741142716209,816.0,0.00015632,2]
[355431571,1741142716621,816.0,0.0001601,2]
[355431572,1741142818143,-190.69591915,0.00016173,2]
[355431573,1741142837735,810.14346936,0.00015834,2]
[355431600,1741143032358,-398.02039672,0.00016068,2]
[355431638,1741143038164,-412.12307264,0.00016068,2]
[355431641,1741143038174,-810.14346936,0.00016216,2]
[355431642,1741143038183,-1028.64373785,0.00016481,2]
[355431644,1741143038194,-9805.18160596,0.000165,2]
[355431647,1741143038206,-44946.58386315,0.000165,2]
[355431649,1741143038215,-810.14346936,0.00016581,2]
[355431651,1741143038225,-810.14346936,0.00016805,2]
[355431653,1741143038235,-470.61393596,0.00017218,2]
[355431655,1741143038246,-157.40361504,0.00017218,2]
[355431657,1741143038255,-2276.29638496,0.00017228,2]
[355431700,1741143040483,-1972.62236544,0.00017228,2]
[355431701,1741143040492,-810.14346936,0.00017241,2]
[355431702,1741143040501,-810.14346936,0.00017488,2]
[355431703,1741143040511,-500.0,0.00017545,2]
[355431704,1741143040521,-810.14346936,0.00017785,2]
[355431705,1741143040530,-766.44772648,0.00017962,2]
[355431706,1741143040542,-43.69574288,0.00017962,2]
[355431707,1741143040551,-810.14346936,0.00018139,2]
[355431708,1741143040561,-810.14346936,0.00018556,2]
[355431709,1741143040571,-180.67,0.000186,2]
[355431710,1741143040580,-203.2352261,0.00018639,2]
[355431711,1741143040589,-313.24337645,0.00018794,2]
[355431751,1741143043394,-21.18843546,0.00018794,2]
[355431753,1741143043406,-475.71165745,0.00018794,2]
[355431755,1741143043416,-1940.49279549,0.000189,2]
[355431757,1741143043425,-500.0,0.00019022,2]
[355431758,1741143043437,-720.93469747,0.00019022,2]
[355431759,1741143043448,-700.0,0.00019022,2]
[355431760,1741143043458,-213.8315604,0.00019022,2]
[355431761,1741143043470,-486.1684396,0.00019022,2]
[355431762,1741143043481,-700.0,0.00019022,2]
[355431763,1741143043491,-700.0,0.00019022,2]
[355431764,1741143043500,-700.0,0.00019022,2]
[355431765,1741143043510,-700.0,0.00019022,2]
[355431766,1741143043519,-700.0,0.00019022,2]
[355431767,1741143043529,-700.0,0.00019022,2]
[355431768,1741143043538,-700.0,0.00019022,2]
[355431769,1741143043548,-700.0,0.00019022,2]
[355431770,1741143043557,-700.0,0.00019022,2]
[355431771,1741143043567,-700.0,0.00019022,2]
[355431772,1741143043576,-700.0,0.00019022,2]
[355431773,1741143043586,-1279.25948595,0.00019022,2]
[355431774,1741143043596,-500.0,0.00019022,2]
[355431775,1741143043606,-500.0,0.00019022,2]
[355431776,1741143043615,-500.0,0.00019022,2]
[355431777,1741143043625,-500.0,0.00019022,2]
[355431778,1741143043634,-500.0,0.00019022,2]
[355431779,1741143043643,-500.0,0.00019022,2]
[355431780,1741143043653,-500.0,0.00019022,2]
[355431781,1741143043662,-500.0,0.00019022,2]
[355431782,1741143043671,-500.0,0.00019022,2]
[355431783,1741143043681,-810.14346936,0.00019079,2]
[355431784,1741143043690,-810.14346936,0.00019199,2]
[355431785,1741143043701,-810.14346936,0.00019575,2]
[355431786,1741143043710,-852.1416663,0.00019629,2]
[355431787,1741143043723,-147.8583337,0.00019629,2]
[355431788,1741143043732,-209.48,0.00019629,3]
[355431789,1741143043741,-305.041398,0.00019629,3]
[355431790,1741143043752,-323.398602,0.00019629,3]
[355431791,1741143043761,-500.0,0.00019631,3]
[355431792,1741143043770,-326.6013974,0.00019631,3]
[355431793,1741143043781,-92.3586026,0.00019631,3]
[355431794,1741143043791,-495.16502546,0.00019639,2]
[355431795,1741143043810,-4.83497454,0.00019639,2]
[355431796,1741143043819,-500.0,0.00019639,2]
[355431797,1741143043829,-500.0,0.00019639,2]
[355431798,1741143043839,-500.0,0.00019639,2]
[355431799,1741143043848,-226.76256246,0.00019639,2]
[355431800,1741143043858,-500.0,0.00019639,2]
[355431801,1741143043866,-500.0,0.00019639,2]
[355431802,1741143043875,-500.0,0.00019639,2]
[355431803,1741143043885,-500.0,0.00019639,2]
[355431804,1741143043894,-508.58848556,0.00019639,2]
[355431805,1741143043904,-500.0,0.00019639,2]
[355431806,1741143043913,-500.0,0.00019639,2]
[355431807,1741143043922,-500.0,0.00019639,2]
[355431808,1741143043931,-500.0,0.00019639,2]
[355431809,1741143043941,-500.0,0.00019639,2]
[355431810,1741143043953,-500.0,0.00019639,2]
[355431811,1741143043962,-500.0,0.00019639,2]
[355431812,1741143043971,-500.0,0.00019639,2]
[355431813,1741143043981,-209.64727388,0.00019639,2]
[355431814,1741143043990,-500.0,0.00019639,2]
[355431815,1741143043999,-500.0,0.00019639,2]
[355431816,1741143044008,-500.0,0.00019639,2]
[355431817,1741143044018,-500.0,0.00019639,2]
[355431818,1741143044027,-372.43682204,0.00019639,2]
[355431819,1741143044037,-500.0,0.00019639,2]
[355431820,1741143044046,-500.0,0.00019639,2]
[355431821,1741143044056,-500.0,0.00019639,2]
[355431822,1741143044065,-500.0,0.00019639,2]
[355431823,1741143044074,-500.0,0.00019639,2]
[355431824,1741143044084,-500.0,0.00019639,2]
[355431825,1741143044093,-500.0,0.00019639,2]
[355431826,1741143044102,-500.0,0.00019639,2]
[355431827,1741143044111,-500.0,0.00019639,2]
[355431828,1741143044120,-500.0,0.00019639,2]
[355431829,1741143044130,-500.0,0.00019639,2]
[355431830,1741143044139,-500.0,0.00019639,2]
[355431831,1741143044148,-500.0,0.00019639,2]
[355431832,1741143044158,-500.0,0.00019639,2]
[355431833,1741143044167,-500.0,0.00019639,2]
[355431834,1741143044177,-500.0,0.00019639,2]
[355431835,1741143044186,-500.0,0.00019639,2]
[355431836,1741143044197,-500.0,0.00019639,2]
[355431837,1741143044206,-500.0,0.00019639,2]
[355431838,1741143044215,-500.0,0.00019639,2]
[355431839,1741143044225,-500.0,0.00019639,2]
[355431840,1741143044235,-500.0,0.00019639,2]
[355431841,1741143044245,-500.0,0.00019639,2]
[355431842,1741143044255,-500.0,0.00019639,2]
[355431843,1741143044265,-500.0,0.00019639,2]
[355431844,1741143044275,-500.0,0.00019639,2]
[355431845,1741143044284,-500.0,0.00019639,2]
[355431846,1741143044294,-500.0,0.00019639,2]
[355431847,1741143044304,-500.0,0.00019639,2]
[355431848,1741143044313,-500.0,0.00019639,2]
[355431849,1741143044323,-500.0,0.00019639,2]
[355431850,1741143044332,-500.0,0.00019639,2]
[355431851,1741143044341,-500.0,0.00019639,2]
[355431852,1741143044350,-500.0,0.00019639,2]
[355431853,1741143044359,-500.0,0.00019639,2]
[355431854,1741143044369,-500.0,0.00019639,2]
[355431855,1741143044378,-500.0,0.00019639,2]
[355431856,1741143044390,-500.0,0.00019639,2]
[355431857,1741143044400,-500.0,0.00019639,2]
[355431858,1741143044409,-500.0,0.00019639,2]
[355431859,1741143044419,-500.0,0.00019639,2]
[355431860,1741143044428,-500.0,0.00019639,2]
[355431861,1741143044438,-500.0,0.00019639,2]
[355431862,1741143044449,-500.0,0.00019639,2]
[355431863,1741143044458,-500.0,0.00019639,2]
[355431864,1741143044470,-500.0,0.00019639,2]
[355431865,1741143044479,-500.0,0.00019639,2]
[355431866,1741143044489,-500.0,0.00019639,2]
[355431867,1741143044498,-439.33218732,0.00019639,2]
[355431868,1741143044507,-500.0,0.00019639,2]
[355431869,1741143044516,-500.0,0.00019639,2]
[355431870,1741143044525,-500.0,0.00019639,2]
[355431871,1741143044534,-500.0,0.00019639,2]
[355431872,1741143044543,-500.0,0.00019639,2]
[355431873,1741143044553,-500.0,0.00019639,2]
[355431874,1741143044562,-500.0,0.00019639,2]
[355431875,1741143044572,-500.0,0.00019639,2]
[355431876,1741143044581,-500.0,0.00019639,2]
[355431877,1741143044590,-500.0,0.00019639,2]
[355431878,1741143044600,-500.0,0.00019639,2]
[355431879,1741143044609,-500.0,0.00019639,2]
[355431880,1741143044618,-500.0,0.00019639,2]
[355431881,1741143044628,-500.0,0.00019639,2]
[355431882,1741143044637,-500.0,0.00019639,2]
[355431883,1741143044646,-500.0,0.00019639,2]
[355431884,1741143044656,-500.0,0.00019639,2]
[355431885,1741143044665,-500.0,0.00019639,2]
[355431886,1741143044675,-500.0,0.00019639,2]
[355431887,1741143044684,-500.0,0.00019639,2]
[355431888,1741143044693,-500.0,0.00019639,2]
[355431889,1741143044705,-500.0,0.00019639,2]
[355431890,1741143044714,-500.0,0.00019639,2]
[355431891,1741143044723,-500.0,0.00019639,2]
[355431892,1741143044732,-500.0,0.00019639,2]
[355431893,1741143044742,-500.0,0.00019639,2]